Workbook

Sheet On İki Aylık Nakit Akışı
A2: On İki Aylık Nakit Akışı | O2: Mali Yıl Başlangıcı: | P2: 2013-07-01
A3: Şirket Adı
A4: Adres, Şehir, İl, Posta Kodu
A5: Telefon, E-posta, Web
B7: Başlangıç | C7: =MaliYıl -> 2013-07-01 | D7: =DATE(YEAR(C7),MONTH(C7)+1,1) -> 2013-08-01 | E7: =DATE(YEAR(D7),MONTH(D7)+1,1) -> 2013-09-01 | F7: 2013-10-01 | G7: 2013-11-01 | H7: 2013-12-01 | I7: 2014-01-01 | J7: 2014-02-01 | K7: 2014-03-01 | L7: 2014-04-01 | M7: 2014-05-01 | N7: 2014-06-01 | O7: Aylık Ortalama | P7: Genel Bakış
A8: Nakit Özeti
A9: Eldeki Nakit (ayın başlangıcı) | B9: 55,000 | C9: =IF(Makbuzlar[[#Totals],[Sütun3]]+Ödenen[[#Totals],[Sütun3]]=0,"",B11) -> 67,593 | D9: =IF(Makbuzlar[[#Totals],[Sütun4]]+Ödenen[[#Totals],[Sütun4]]=0,"",C11) -> 54,265 | E9: =IF(Makbuzlar[[#Totals],[Sütun5]]+Ödenen[[#Totals],[Sütun5]]=0,"",D11) -> 55,739 | F9: =IF(Makbuzlar[[#Totals],[Sütun6]]+Ödenen[[#Totals],[Sütun6]]=0,"",E11) -> 69,290 | G9: =IF(Makbuzlar[[#Totals],[Sütun7]]+Ödenen[[#Totals],[Sütun7]]=0,"",F11) -> 65,618 | H9: =IF(Makbuzlar[[#Totals],[Sütun8]]+Ödenen[[#Totals],[Sütun8]]=0,"",G11) ->  | I9: =IF(Makbuzlar[[#Totals],[Sütun9]]+Ödenen[[#Totals],[Sütun9]]=0,"",H11) ->  | J9: =IF(Makbuzlar[[#Totals],[Sütun10]]+Ödenen[[#Totals],[Sütun10]]=0,"",I11) ->  | K9: =IF(Makbuzlar[[#Totals],[Sütun11]]+Ödenen[[#Totals],[Sütun11]]=0,"",J11) ->  | L9: =IF(Makbuzlar[[#Totals],[Sütun12]]+Ödenen[[#Totals],[Sütun12]]=0,"",K11) ->  | M9: =IF(Makbuzlar[[#Totals],[Sütun13]]+Ödenen[[#Totals],[Sütun13]]=0,"",L11) ->  | N9: =IF(Makbuzlar[[#Totals],[Sütun14]]+Ödenen[[#Totals],[Sütun14]]=0,"",M11) ->  | O9: =IFERROR(AVERAGE(ÖZET[[#This Row],[Sütun3]:[Sütun14]]),"") -> 62,501
A10: Mevcut Nakit (eldeki + makbuzlar, ödeme yapılmadan önce) | B10: =SUM(B9,Makbuzlar[[#Totals],[Sütun2]]) -> 67,593 | C10: =IF(C9="","",SUM(C9,Makbuzlar[[#Totals],[Sütun3]])) -> 76,065 | D10: =IF(D9="","",SUM(D9,Makbuzlar[[#Totals],[Sütun4]])) -> 83,301 | E10: =IF(E9="","",SUM(E9,Makbuzlar[[#Totals],[Sütun5]])) -> 91,032 | F10: =IF(F9="","",SUM(F9,Makbuzlar[[#Totals],[Sütun6]])) -> 89,662 | G10: =IF(G9="","",SUM(G9,Makbuzlar[[#Totals],[Sütun7]])) -> 76,200 | H10: =IF(H9="","",SUM(H9,Makbuzlar[[#Totals],[Sütun8]])) ->  | I10: =IF(I9="","",SUM(I9,Makbuzlar[[#Totals],[Sütun9]])) ->  | J10: =IF(J9="","",SUM(J9,Makbuzlar[[#Totals],[Sütun10]])) ->  | K10: =IF(K9="","",SUM(K9,Makbuzlar[[#Totals],[Sütun11]])) ->  | L10: =IF(L9="","",SUM(L9,Makbuzlar[[#Totals],[Sütun12]])) ->  | M10: =IF(M9="","",SUM(M9,Makbuzlar[[#Totals],[Sütun13]])) ->  | N10: =IF(N9="","",SUM(N9,Makbuzlar[[#Totals],[Sütun14]])) ->  | O10: =IFERROR(AVERAGE(ÖZET[[#This Row],[Sütun3]:[Sütun14]]),"") -> 83,252
A11: Nakit Durumu (ay sonu) | B11: =(B10-Ödenen[[#Totals],[Sütun2]]) -> 67,593 | C11: =IFERROR(C10-Ödenen[[#Totals],[Sütun3]],"") -> 54,265 | D11: =IFERROR(D10-Ödenen[[#Totals],[Sütun4]],"") -> 55,739 | E11: =IFERROR(E10-Ödenen[[#Totals],[Sütun5]],"") -> 69,290 | F11: =IFERROR(F10-Ödenen[[#Totals],[Sütun6]],"") -> 65,618 | G11: =IFERROR(G10-Ödenen[[#Totals],[Sütun7]],"") -> 51,413 | H11: =IFERROR(H10-Ödenen[[#Totals],[Sütun8]],"") ->  | I11: =IFERROR(I10-Ödenen[[#Totals],[Sütun9]],"") ->  | J11: =IFERROR(J10-Ödenen[[#Totals],[Sütun10]],"") ->  | K11: =IFERROR(K10-Ödenen[[#Totals],[Sütun11]],"") ->  | L11: =IFERROR(L10-Ödenen[[#Totals],[Sütun12]],"") ->  | M11: =IFERROR(M10-Ödenen[[#Totals],[Sütun13]],"") ->  | N11: =IFERROR(N10-Ödenen[[#Totals],[Sütun14]],"") ->  | O11: =IFERROR(AVERAGE(ÖZET[[#This Row],[Sütun3]:[Sütun14]]),"") -> 59,265
A13: Nakit Makbuzları
A14: Nakit Satışlar | B14: 5,616 | C14: 3,889 | D14: 24,411 | E14: 31,642 | F14: 14,647 | G14: 3,034 | O14: =IFERROR(AVERAGE(Makbuzlar[[#This Row],[Sütun3]:[Sütun14]]),"") -> 15,525
A15: Alacak hesaplarından tahsil edilenler | B15: 4,498 | C15: 3,493 | D15: 1,987 | E15: 1,029 | F15: 2,911 | G15: 4,234 | O15: =IFERROR(AVERAGE(Makbuzlar[[#This Row],[Sütun3]:[Sütun14]]),"") -> 2,731
A16: Borç/ diğer nakit | B16: 2,479 | C16: 1,090 | D16: 2,638 | E16: 2,622 | F16: 2,814 | G16: 3,314 | O16: =IFERROR(AVERAGE(Makbuzlar[[#This Row],[Sütun3]:[Sütun14]]),"") -> 2,496
A17: Toplam Nakit Makbuzları | B17: =SUBTOTAL(109,Makbuzlar[Sütun2]) -> 12,593 | C17: =SUBTOTAL(109,Makbuzlar[Sütun3]) -> 8,472 | D17: =SUBTOTAL(109,Makbuzlar[Sütun4]) -> 29,036 | E17: =SUBTOTAL(109,Makbuzlar[Sütun5]) -> 35,293 | F17: =SUBTOTAL(109,Makbuzlar[Sütun6]) -> 20,372 | G17: =SUBTOTAL(109,Makbuzlar[Sütun7]) -> 10,582 | H17: =SUBTOTAL(109,Makbuzlar[Sütun8]) -> 0 | I17: =SUBTOTAL(109,Makbuzlar[Sütun9]) -> 0 | J17: =SUBTOTAL(109,Makbuzlar[Sütun10]) -> 0 | K17: =SUBTOTAL(109,Makbuzlar[Sütun11]) -> 0 | L17: =SUBTOTAL(109,Makbuzlar[Sütun12]) -> 0 | M17: =SUBTOTAL(109,Makbuzlar[Sütun13]) -> 0 | N17: =SUBTOTAL(109,Makbuzlar[Sütun14]) -> 0 | O17: =IFERROR(AVERAGE(Makbuzlar[[#Totals],[Sütun3]:[Sütun14]]),"") -> 8,646
A19: Ödenen Nakit
A20: Satın alımlar (belirtin) | C20: 521 | D20: 323 | E20: 274 | F20: 451 | G20: 104 | O20: =IFERROR(AVERAGE(Ödenen[[#This Row],[Sütun3]:[Sütun14]]),"") -> 335
A21: Brüt ücretler (tam çekilen tutar) | C21: 10,572 | D21: 14,514 | E21: 10,561 | F21: 13,170 | G21: 12,478 | O21: =IFERROR(AVERAGE(Ödenen[[#This Row],[Sütun3]:[Sütun14]]),"") -> 12,259
A22: Sarf malzemeleri (ofis ve işletim) | C22: 250 | D22: 428 | E22: 165 | F22: 1,168 | G22: 345 | O22: =IFERROR(AVERAGE(Ödenen[[#This Row],[Sütun3]:[Sütun14]]),"") -> 471
A23: Onarım ve bakım | C23: 0 | D23: 2,200 | E23: 163 | F23: 67 | G23: 0 | O23: =IFERROR(AVERAGE(Ödenen[[#This Row],[Sütun3]:[Sütun14]]),"") -> 486
A24: Reklam | C24: 1,100 | D24: 625 | E24: 1,356 | F24: 0 | G24: 2,560 | O24: =IFERROR(AVERAGE(Ödenen[[#This Row],[Sütun3]:[Sütun14]]),"") -> 1,128
A25: Kiralama | C25: 3,500 | D25: 3,500 | E25: 3,500 | F25: 3,500 | G25: 3,500 | O25: =IFERROR(AVERAGE(Ödenen[[#This Row],[Sütun3]:[Sütun14]]),"") -> 3,500
A26: Su - Elektrik | C26: 285 | D26: 318 | E26: 151 | F26: 134 | G26: 228 | O26: =IFERROR(AVERAGE(Ödenen[[#This Row],[Sütun3]:[Sütun14]]),"") -> 223
A27: Diğer (belirtin) | C27: 123 | D27: 234 | E27: 123 | F27: 234 | G27: 123 | O27: =IFERROR(AVERAGE(Ödenen[[#This Row],[Sütun3]:[Sütun14]]),"") -> 167
A28: Kredi anapara ödemesi | C28: 4,000 | D28: 4,000 | E28: 4,000 | F28: 4,000 | G28: 4,000 | O28: =IFERROR(AVERAGE(Ödenen[[#This Row],[Sütun3]:[Sütun14]]),"") -> 4,000
A29: Sermaye satın alma işlemleri (belirtin) | C29: 679 | D29: 700 | E29: 679 | F29: 650 | G29: 679 | O29: =IFERROR(AVERAGE(Ödenen[[#This Row],[Sütun3]:[Sütun14]]),"") -> 677
A30: Diğer başlangıç maliyetleri | C30: 400 | D30: 350 | E30: 400 | F30: 300 | G30: 400 | O30: =IFERROR(AVERAGE(Ödenen[[#This Row],[Sütun3]:[Sütun14]]),"") -> 370
A31: Rezerv ve/veya Emanet | C31: 300 | D31: 300 | E31: 300 | F31: 300 | G31: 300 | O31: =IFERROR(AVERAGE(Ödenen[[#This Row],[Sütun3]:[Sütun14]]),"") -> 300
A32: Şirket Sahiplerinin Çektiği Tutar | C32: 70 | D32: 70 | E32: 70 | F32: 70 | G32: 70 | O32: =IFERROR(AVERAGE(Ödenen[[#This Row],[Sütun3]:[Sütun14]]),"") -> 70
A33: Ödenen Toplam Nakit | C33: =SUBTOTAL(109,Ödenen[Sütun3]) -> 21,800 | D33: =SUBTOTAL(109,Ödenen[Sütun4]) -> 27,562 | E33: =SUBTOTAL(109,Ödenen[Sütun5]) -> 21,742 | F33: =SUBTOTAL(109,Ödenen[Sütun6]) -> 24,044 | G33: =SUBTOTAL(109,Ödenen[Sütun7]) -> 24,787 | H33: =SUBTOTAL(109,Ödenen[Sütun8]) -> 0 | I33: =SUBTOTAL(109,Ödenen[Sütun9]) -> 0 | J33: =SUBTOTAL(109,Ödenen[Sütun10]) -> 0 | K33: =SUBTOTAL(109,Ödenen[Sütun11]) -> 0 | L33: =SUBTOTAL(109,Ödenen[Sütun12]) -> 0 | M33: =SUBTOTAL(109,Ödenen[Sütun13]) -> 0 | N33: =SUBTOTAL(109,Ödenen[Sütun14]) -> 0 | O33: =IFERROR(AVERAGE(Ödenen[[#Totals],[Sütun3]:[Sütun14]]),"") -> 9,995
A35: Önemli işletim verileri (nakit dışı akış bilgileri)
A36: Satış Hacmi (Dolar) | B36: 2,000 | C36: 2,500 | D36: 2,257 | E36: 2,387 | F36: 2,664 | G36: 2,324 | O36: =IFERROR(AVERAGE(ÖnemliİşletimVerileri[[#This Row],[Sütun2]:[Sütun14]]),"") -> 2,355
A37: Alacak Hesapları | B37: 1,500 | C37: 500 | D37: 886 | E37: 1,035 | F37: 1,775 | G37: 839 | O37: =IFERROR(AVERAGE(ÖnemliİşletimVerileri[[#This Row],[Sütun2]:[Sütun14]]),"") -> 1,089
A38: Şüpheli Alacaklar (ay sonu) | B38: 300 | C38: 200 | D38: 225 | E38: 269 | F38: 448 | G38: 359 | O38: =IFERROR(AVERAGE(ÖnemliİşletimVerileri[[#This Row],[Sütun2]:[Sütun14]]),"") -> 300
A39: Eldeki stok (ay sonu) | O39: =IFERROR(AVERAGE(ÖnemliİşletimVerileri[[#This Row],[Sütun2]:[Sütun14]]),"") -> 
A40: Borç Hesapları (ay sonu) | O40: =IFERROR(AVERAGE(ÖnemliİşletimVerileri[[#This Row],[Sütun2]:[Sütun14]]),"") -> 
A41: Amortisman | O41: =IFERROR(AVERAGE(#REF!),"") -> 

Sheet Nakit Akışı Özeti
J26: Veri Noktaları: | K26: 5
C27: (Grafiği oluşturulan toplam veri noktalarını değiştirmek için üstteki kaydırıcıyı sürükleyin.)
